fUSD/lending_fUSD_20240526
["ID","MTS","AMOUNT","RATE_DAILY","PERIOD"]
[327944421,1716689479350,-500.0,0.0003178,5]
[327944422,1716689479359,-606.03,0.0003178,5]
[327944423,1716689479368,-523.4950932,0.0003178,5]
[327944424,1716689479378,-500.0,0.0003178,5]
[327944425,1716689479387,-500.0,0.0003178,5]
[327944426,1716689479396,-150.0,0.0003178,5]
[327944427,1716689479405,-518.07416695,0.0003178,5]
[327944428,1716689479415,-500.0,0.0003178,5]
[327944429,1716689479424,-511.57569111,0.0003178,5]
[327944430,1716689479433,-500.0,0.0003178,5]
[327944431,1716689479444,-500.0,0.0003178,5]
[327944432,1716689479455,-552.44,0.0003178,5]
[327944433,1716689479464,-518.45282822,0.0003178,5]
[327944434,1716689479473,-517.51920884,0.0003178,5]
[327944435,1716689479482,-500.0,0.0003178,5]
[327944436,1716689479493,-500.0,0.0003178,5]
[327944437,1716689479505,-500.0,0.0003178,5]
[327944438,1716689479514,-1508.31,0.0003178,5]
[327944439,1716689479526,-500.0,0.0003178,5]
[327944440,1716689479535,-500.0,0.0003178,5]
[327944441,1716689479544,-500.0,0.0003178,5]
[327944442,1716689479554,-1578.22,0.0003178,5]
[327944443,1716689479564,-890.7,0.0003178,5]
[327944444,1716689479574,-500.0,0.0003178,5]
[327944445,1716689479584,-500.0,0.0003178,5]
[327944446,1716689479594,-500.0,0.0003178,5]
[327944447,1716689479603,-500.0,0.0003178,5]
[327944448,1716689479613,-500.0,0.0003178,5]
[327944449,1716689479623,-500.0,0.0003178,5]
[327944450,1716689479632,-500.0,0.0003178,5]
[327944451,1716689479642,-707.92,0.0003178,5]
[327944452,1716689479652,-500.0,0.0003178,5]
[327944453,1716689479661,-500.0,0.0003178,5]
[327944454,1716689479670,-531.16000643,0.0003178,5]
[327944455,1716689479679,-500.0,0.0003178,5]
[327944456,1716689479688,-500.0,0.0003178,5]
[327944457,1716689479698,-500.0,0.0003178,5]
[327944458,1716689479707,-1646.88,0.0003178,5]
[327944459,1716689479716,-1398.68,0.0003178,5]
[327944460,1716689479725,-500.0,0.0003178,5]
[327944461,1716689479735,-500.0,0.0003178,5]
[327944462,1716689479744,-500.0,0.0003178,5]
[327944463,1716689479756,-569.4,0.0003178,5]
[327944464,1716689479765,-998.63,0.0003178,5]
[327944465,1716689479775,-500.0,0.0003178,5]
[327944466,1716689479784,-500.0,0.0003178,5]
[327944467,1716689479793,-500.0,0.0003178,5]
[327944468,1716689479801,-1051.55811319,0.0003178,5]
[327944469,1716689479811,-500.0,0.0003178,5]
[327944470,1716689479820,-500.0,0.0003178,5]
[327944471,1716689479829,-533.26047235,0.0003178,5]
[327944472,1716689479838,-500.0,0.0003178,5]
[327944473,1716689479847,-606.87,0.0003178,5]
[327944474,1716689479857,-500.0,0.0003178,5]
[327944475,1716689479867,-500.0,0.0003178,5]
[327944476,1716689479877,-500.0,0.0003178,5]
[327944477,1716689479886,-523.43701397,0.0003178,5]
[327944478,1716689479895,-741.46,0.0003178,5]
[327944479,1716689479905,-570.63,0.0003178,5]
[327944480,1716689479915,-525.68,0.0003178,5]
[327944481,1716689479926,-500.0,0.0003178,5]
[327944482,1716689479936,-773.16,0.0003178,5]
[327944483,1716689479945,-500.0,0.0003178,5]
[327944484,1716689479955,-500.0,0.0003178,5]
[327944485,1716689479964,-345.51038174,0.0003178,5]
[327944486,1716689479973,-500.0,0.0003178,5]
[327944487,1716689479982,-500.0,0.0003178,5]
[327944488,1716689479992,-500.0,0.0003178,5]
[327944489,1716689480004,-500.0,0.0003178,5]
[327944490,1716689480014,-510.22769496,0.0003178,5]
[327944491,1716689480023,-500.0,0.0003178,5]
[327944492,1716689480032,-557.61393611,0.0003178,5]
[327944493,1716689480041,-500.0,0.0003178,5]
[327944494,1716689480050,-500.0,0.0003178,5]
[327944495,1716689480059,-531.15139511,0.0003178,5]
[327944496,1716689480068,-500.0,0.0003178,5]
[327944497,1716689480077,-660.47,0.0003178,5]
[327944498,1716689480087,-500.0,0.0003178,5]
[327944499,1716689480096,-1136.2,0.0003178,5]
[327944500,1716689480105,-500.0,0.0003178,5]
[327944501,1716689480115,-500.0,0.0003178,5]
[327944502,1716689480124,-500.0,0.0003178,5]
[327944503,1716689480133,-535.8727424,0.0003178,5]
[327944504,1716689480142,-500.0,0.0003178,5]
[327944505,1716689480151,-1120.09,0.0003178,5]
[327944506,1716689480160,-500.0,0.0003178,5]
[327944507,1716689480169,-500.0,0.0003178,5]
[327944508,1716689480178,-523.30109617,0.0003178,5]
[327944509,1716689480187,-500.0,0.0003178,5]
[327944510,1716689480196,-799.61,0.0003178,5]
[327944511,1716689480205,-500.0,0.0003178,5]
[327944512,1716689480215,-603.81,0.0003178,5]
[327944513,1716689480225,-500.0,0.0003178,5]
[327944514,1716689480235,-500.0,0.0003178,5]
[327944515,1716689480244,-544.26043716,0.0003178,5]
[327944516,1716689480255,-386.61136595,0.0003178,5]
[327944517,1716689480264,-500.0,0.0003178,5]
[327944518,1716689480274,-500.0,0.0003178,5]
[327944519,1716689480283,-500.0,0.0003178,5]
[327944520,1716689480292,-500.0,0.0003178,5]
[327944521,1716689480301,-500.0,0.0003178,5]
[327944522,1716689480311,-532.87087184,0.0003178,5]
[327944523,1716689480320,-500.0,0.0003178,5]
[327944524,1716689480329,-500.0,0.0003178,5]
[327944525,1716689480470,-2867.24,0.0003178,5]
[327944526,1716689480480,-500.0,0.0003178,5]
[327944527,1716689480491,-1143.3,0.0003178,5]
[327944528,1716689480500,-500.0,0.0003178,5]
[327944529,1716689480511,-500.0,0.0003178,5]
[327944530,1716689480521,-268.73363356,0.0003178,5]
[327944531,1716689480530,-500.0,0.0003178,5]
[327944532,1716689480539,-527.73621231,0.0003178,5]
[327944533,1716689480548,-740.37,0.0003178,5]
[327944534,1716689480557,-500.0,0.0003178,5]
[327944535,1716689480567,-551.96791463,0.0003178,5]
[327944536,1716689480575,-500.0,0.0003178,5]
[327944537,1716689480584,-916.37,0.0003178,5]
[327944538,1716689480593,-500.0,0.0003178,5]
[327944539,1716689480602,-500.0,0.0003178,5]
[327944540,1716689480611,-500.0,0.0003178,5]
[327944541,1716689480621,-1098.1,0.0003178,5]
[327944542,1716689480631,-500.0,0.0003178,5]
[327944543,1716689480640,-500.0,0.0003178,5]
[327944544,1716689480650,-500.0,0.0003178,5]
[327944545,1716689480659,-830.5,0.0003178,5]
[327944546,1716689480668,-630.46,0.0003178,5]
[327944547,1716689480677,-511.43377179,0.0003178,5]
[327944548,1716689480687,-500.0,0.0003178,5]
[327944549,1716689480696,-500.0,0.0003178,5]
[327944550,1716689480705,-500.0,0.0003178,5]
[327944551,1716689480715,-661.61,0.0003178,5]
[327944552,1716689480724,-500.0,0.0003178,5]
[327944553,1716689480733,-550.99,0.0003178,5]
[327944554,1716689480743,-500.0,0.0003178,5]
[327944555,1716689480751,-1244.61,0.0003178,5]
[327944556,1716689480762,-500.0,0.0003178,5]
[327944557,1716689480772,-596.8,0.0003178,5]
[327944558,1716689480781,-566.80199938,0.0003178,5]
[327944559,1716689480790,-500.0,0.0003178,5]
[327944560,1716689480799,-515.08262726,0.0003178,5]
[327944561,1716689480808,-226.95628211,0.0003178,5]
[327944562,1716689480817,-500.0,0.0003178,5]
[327944563,1716689480827,-500.0,0.0003178,5]
[327944564,1716689480836,-500.0,0.0003178,5]
[327944565,1716689480845,-550.56680233,0.0003178,5]
[327944566,1716689480854,-500.0,0.0003178,5]
[327944567,1716689480863,-500.0,0.0003178,5]
[327944568,1716689480872,-500.0,0.0003178,5]
[327944569,1716689480881,-647.89,0.0003178,5]
[327944570,1716689480890,-500.0,0.0003178,5]
[327944571,1716689480899,-666.05,0.0003178,5]
[327944572,1716689480908,-500.0,0.0003178,5]
[327944573,1716689480917,-706.29,0.0003178,5]
[327944574,1716689480927,-529.98727604,0.0003178,5]
[327944575,1716689480936,-1354.97,0.0003178,5]
[327944576,1716689480945,-549.35707894,0.0003178,5]
[327944577,1716689480955,-500.0,0.0003178,5]
[327944578,1716689480965,-500.0,0.0003178,5]
[327944579,1716689480974,-1131.77,0.0003178,5]
[327944580,1716689480983,-500.0,0.0003178,5]
[327944581,1716689480992,-500.0,0.0003178,5]
[327944582,1716689481002,-300.0,0.0003178,5]
[327944583,1716689481013,-500.0,0.0003178,5]
[327944584,1716689481024,-500.0,0.0003178,5]
[327944585,1716689481036,-937.41,0.0003178,5]
[327944586,1716689481047,-1076.65,0.0003178,5]
[327944587,1716689481056,-500.0,0.0003178,5]
[327944588,1716689481065,-794.53,0.0003178,5]
[327944589,1716689481074,-553.21377216,0.0003178,5]
[327944590,1716689481084,-500.0,0.0003178,5]
[327944591,1716689481093,-500.0,0.0003178,5]
[327944592,1716689481104,-508.7,0.0003178,5]
[327944593,1716689481113,-558.06,0.0003178,5]
[327944594,1716689481123,-526.28660592,0.0003178,5]
[327944595,1716689481132,-251.09472756,0.0003178,5]
[327944596,1716689481142,-500.0,0.0003178,5]
[327944597,1716689481151,-500.0,0.0003178,5]
[327944598,1716689481161,-500.0,0.0003178,5]
[327944599,1716689481170,-500.0,0.0003178,5]
[327944600,1716689481180,-1051.06,0.0003178,5]
[327944601,1716689481189,-816.68,0.0003178,5]
[327944602,1716689481199,-500.0,0.0003178,5]
[327944603,1716689481208,-500.0,0.0003178,5]
[327944604,1716689481218,-500.0,0.0003178,5]
[327944605,1716689481227,-500.0,0.0003178,5]
[327944606,1716689481236,-576.61,0.0003178,5]
[327944607,1716689481246,-500.0,0.0003178,5]
[327944608,1716689481256,-500.0,0.0003178,5]
[327944609,1716689481265,-500.0,0.0003178,5]
[327944610,1716689481275,-522.25479602,0.0003178,5]
[327944611,1716689481284,-500.0,0.0003178,5]
[327944612,1716689481293,-548.30887878,0.0003178,5]
[327944613,1716689481302,-500.0,0.0003178,5]
[327944614,1716689481311,-500.0,0.0003178,5]
[327944615,1716689481321,-500.0,0.0003178,5]
[327944616,1716689481329,-500.0,0.0003178,5]
[327944617,1716689481339,-500.0,0.0003178,5]
[327944618,1716689481347,-500.0,0.0003178,5]
[327944619,1716689481357,-500.0,0.0003178,8]
[327944620,1716689481366,-845.3,0.0003178,5]
[327944621,1716689481380,-603.67,0.0003178,5]
[327944622,1716689481401,-500.0,0.0003178,5]
[327944623,1716689481419,-1429.65,0.0003178,5]
[327944624,1716689481438,-500.0,0.0003178,5]
[327944625,1716689481462,-500.0,0.0003178,5]
[327944626,1716689481480,-500.0,0.0003178,5]
[327944627,1716689481500,-500.0,0.0003178,5]
[327944628,1716689481515,-500.0,0.0003178,5]
[327944629,1716689481534,-1268.5,0.0003178,5]
[327944630,1716689481554,-525.47546685,0.0003178,5]
[327944631,1716689481570,-519.71,0.0003178,5]
[327944632,1716689481584,-889.71,0.0003178,5]
[327944633,1716689481601,-996.94,0.0003178,5]
[327944634,1716689481618,-500.0,0.0003178,5]
[327944635,1716689481634,-500.0,0.0003178,5]
[327944636,1716689481651,-500.0,0.0003178,5]
[327944637,1716689481668,-500.0,0.0003178,5]
[327944638,1716689481684,-500.0,0.0003178,5]
[327944639,1716689481700,-828.16,0.0003178,5]
[327944640,1716689481715,-500.0,0.0003178,5]
[327944641,1716689481730,-675.54,0.0003178,5]
[327944642,1716689481745,-885.01,0.0003178,5]
[327944643,1716689481760,-772.08,0.0003178,5]
[327944644,1716689481774,-500.0,0.0003178,5]
[327944645,1716689481790,-500.0,0.0003178,5]
[327944646,1716689481806,-500.0,0.0003178,5]
[327944647,1716689481822,-500.0,0.0003178,5]
[327944648,1716689481837,-500.0,0.0003178,5]
[327944649,1716689481851,-621.18024803,0.0003178,5]
[327944650,1716689481865,-547.38418707,0.0003178,5]
[327944651,1716689481881,-500.0,0.0003178,5]
[327944652,1716689481895,-500.0,0.0003178,5]
[327944653,1716689481909,-500.0,0.0003178,5]
[327944654,1716689481924,-500.0,0.0003178,5]
[327944655,1716689481938,-500.0,0.0003178,5]
[327944656,1716689481953,-500.0,0.0003178,5]
[327944657,1716689481968,-500.0,0.0003178,5]
[327944658,1716689481983,-500.0,0.0003178,5]
[327944659,1716689481998,-526.92824796,0.0003178,5]
[327944660,1716689482014,-500.0,0.0003178,5]
[327944661,1716689482029,-500.0,0.0003178,5]
[327944662,1716689482044,-500.0,0.0003178,5]
[327944663,1716689482059,-500.0,0.0003178,5]
[327944664,1716689482075,-500.0,0.0003178,5]
[327944665,1716689482091,-500.0,0.0003178,5]
[327944666,1716689482107,-513.20770985,0.0003178,5]
[327944667,1716689482122,-500.0,0.0003178,5]
[327944668,1716689482138,-1252.92,0.0003178,5]
[327944669,1716689482154,-500.0,0.0003178,5]
[327944670,1716689482169,-523.12,0.0003178,5]
[327944671,1716689482184,-940.45,0.0003178,5]
[327944672,1716689482199,-500.0,0.0003178,5]
[327944673,1716689482214,-500.0,0.0003178,5]
[327944674,1716689482229,-694.09,0.0003178,5]
[327944675,1716689482244,-500.0,0.0003178,5]
[327944676,1716689482267,-500.0,0.0003178,5]
[327944677,1716689482283,-546.63308151,0.0003178,5]
[327944678,1716689482300,-500.0,0.0003178,5]
[327944679,1716689482316,-512.56,0.0003178,5]
[327944680,1716689482331,-537.03317966,0.0003178,5]
[327944681,1716689482348,-500.0,0.0003178,5]
[327944682,1716689482364,-543.3,0.0003178,5]
[327944683,1716689482380,-500.0,0.0003178,5]
[327944684,1716689482395,-500.0,0.0003178,5]
[327944685,1716689482410,-500.0,0.0003178,5]
[327944686,1716689482425,-500.0,0.0003178,5]
[327944687,1716689482440,-642.33,0.0003178,5]
[327944688,1716689482460,-549.65438728,0.0003178,5]
[327944689,1716689482475,-875.62,0.0003178,5]
[327944690,1716689482491,-500.0,0.0003178,5]
[327944691,1716689482508,-500.0,0.0003178,5]
[327944692,1716689482524,-500.0,0.0003178,5]
[327944693,1716689482539,-500.0,0.0003178,5]
[327944694,1716689482553,-525.54819209,0.0003178,5]
[327944695,1716689482568,-707.26,0.0003178,5]
[327944696,1716689482583,-534.75032672,0.0003178,5]
[327944697,1716689482599,-500.0,0.0003178,5]
[327944698,1716689482614,-500.0,0.0003178,5]
[327944699,1716689482629,-500.0,0.0003178,5]
[327944700,1716689482644,-547.03,0.0003178,5]
[327944701,1716689482660,-522.00833273,0.0003178,5]
[327944702,1716689482676,-551.29318421,0.0003178,5]
[327944703,1716689482690,-500.0,0.0003178,5]
[327944704,1716689482706,-500.0,0.0003178,5]
[327944705,1716689482722,-500.0,0.0003178,5]
[327944706,1716689482737,-500.0,0.0003178,5]
[327944707,1716689482752,-500.0,0.0003178,5]
[327944708,1716689482769,-378.7,0.0003178,5]
[327944709,1716689482784,-532.95629148,0.0003178,5]
[327944710,1716689482799,-643.79,0.0003178,5]
[327944711,1716689482814,-500.0,0.0003178,5]
[327944712,1716689482829,-500.0,0.0003178,5]
[327944713,1716689482843,-500.0,0.0003178,5]
[327944714,1716689482858,-500.0,0.0003178,5]
[327944715,1716689482873,-530.29603079,0.0003178,5]
[327944716,1716689483075,-691.88,0.0003178,5]
[327944717,1716689483090,-1291.12,0.0003178,5]
[327944718,1716689483101,-1217.05,0.0003178,5]
[327944719,1716689483111,-500.0,0.0003178,5]
[327944720,1716689483120,-504.31,0.0003178,5]
[327944721,1716689483130,-500.0,0.0003178,5]
[327944722,1716689483140,-526.51,0.0003178,5]
[327944723,1716689483149,-1030.36,0.0003178,5]
[327944724,1716689483159,-500.0,0.0003178,5]
[327944725,1716689483168,-855.19,0.0003178,5]
[327944726,1716689483178,-1117.69,0.0003178,5]
[327944727,1716689483188,-524.24097322,0.0003178,5]
[327944728,1716689483198,-500.0,0.0003178,5]
[327944729,1716689483208,-2054.68,0.0003178,5]
[327944730,1716689483217,-512.85781024,0.0003178,5]
[327944731,1716689483227,-500.0,0.0003178,5]
[327944732,1716689483237,-500.0,0.0003178,5]
[327944733,1716689483246,-500.0,0.0003178,5]
[327944734,1716689483256,-1155.35,0.0003178,5]
[327944735,1716689483265,-766.1,0.0003178,5]
[327944736,1716689483275,-500.0,0.0003178,5]
[327944737,1716689483284,-500.0,0.0003178,5]
[327944738,1716689483293,-531.59051428,0.0003178,5]
[327944739,1716689483303,-1376.34,0.0003178,5]
[327944740,1716689483313,-500.0,0.0003178,5]
[327944741,1716689483323,-1398.61,0.0003178,5]
[327944742,1716689483332,-500.0,0.0003178,5]
[327944743,1716689483342,-500.0,0.0003178,5]
[327944744,1716689483351,-4713.51,0.0003178,5]
[327944745,1716689483361,-500.0,0.0003178,5]
[327944746,1716689483370,-500.0,0.0003178,5]
[327944747,1716689483380,-500.0,0.0003178,5]
[327944748,1716689483389,-500.0,0.0003178,5]
[327944749,1716689483399,-500.0,0.0003178,5]
[327944750,1716689483408,-21506.58,0.0003178,5]
[327944751,1716689483418,-500.0,0.0003178,5]
[327944752,1716689483427,-500.0,0.0003178,5]
[327944753,1716689483436,-500.0,0.0003178,5]
[327944754,1716689483448,-640.89,0.0003178,5]
[327944755,1716689483458,-500.0,0.0003178,5]
[327944756,1716689483467,-553.99,0.0003178,5]
[327944757,1716689483477,-686.64,0.0003178,5]
[327944758,1716689483488,-500.0,0.0003178,5]
[327944759,1716689483496,-1173.25,0.0003178,5]
[327944760,1716689483508,-1084.25,0.0003178,5]
[327944761,1716689483518,-1778.25,0.0003178,5]
[327944762,1716689483529,-795.15,0.0003178,5]
[327944763,1716689483537,-500.0,0.0003178,5]
[327944764,1716689483547,-719.04,0.0003178,5]
[327944765,1716689483556,-1658.65,0.0003178,5]
[327944766,1716689483566,-1213.28,0.0003178,5]
[327944767,1716689483575,-500.0,0.0003178,5]
[327944768,1716689483585,-500.0,0.0003178,5]
[327944769,1716689483596,-500.0,0.0003178,5]
[327944770,1716689483606,-500.0,0.0003178,5]
[327944771,1716689483615,-1318.05,0.0003178,5]
[327944772,1716689483626,-557.62057567,0.0003178,5]
[327944773,1716689483635,-2945.87,0.0003178,5]
[327944774,1716689483644,-501.98,0.0003178,5]
[327944775,1716689483654,-500.0,0.0003178,5]
[327944776,1716689483664,-635.97,0.0003178,5]
[327944777,1716689483673,-500.0,0.0003178,5]
[327944778,1716689483682,-1473.09,0.0003178,5]
[327944779,1716689483692,-570.79,0.0003178,5]
[327944780,1716689483702,-500.0,0.0003178,5]
[327944781,1716689483711,-500.0,0.0003178,5]
[327944782,1716689483721,-1757.92,0.0003178,5]
[327944783,1716689483730,-500.0,0.0003178,5]
[327944784,1716689483739,-260.28687417,0.0003178,5]
[327944785,1716689483749,-500.0,0.0003178,5]
[327944786,1716689483759,-801.85,0.0003178,5]
[327944787,1716689483769,-2318.07,0.0003178,5]
[327944788,1716689483778,-500.0,0.0003178,5]
[327944789,1716689483787,-500.0,0.0003178,5]
[327944790,1716689483796,-417.00290984,0.0003178,5]
[327944791,1716689483805,-815.05,0.0003178,5]
[327944792,1716689483814,-609.93,0.0003178,5]
[327944793,1716689483824,-500.0,0.0003178,5]
[327944794,1716689483833,-500.0,0.0003178,5]
[327944795,1716689483842,-500.0,0.0003178,5]
[327944796,1716689483851,-500.0,0.0003178,5]
[327944797,1716689483860,-1126.17,0.0003178,5]
[327944798,1716689483869,-500.0,0.0003178,5]
[327944799,1716689483877,-516.93520604,0.0003178,5]
[327944800,1716689483887,-500.0,0.0003178,5]
[327944801,1716689483895,-3561.79,0.0003178,5]
[327944802,1716689483905,-500.0,0.0003178,5]
[327944803,1716689483915,-684.65,0.0003178,5]
[327944804,1716689483924,-506.56,0.0003178,5]
[327944805,1716689483934,-500.0,0.0003178,5]
[327944806,1716689483943,-500.0,0.0003178,5]
[327944807,1716689483952,-559.22,0.0003178,5]
[327944808,1716689483961,-1596.82,0.0003178,5]
[327944809,1716689483971,-879.4,0.0003178,5]
[327944810,1716689483980,-4349.82,0.0003178,5]
[327944811,1716689483989,-500.0,0.0003178,5]
[327944812,1716689483999,-500.0,0.0003178,5]
[327944813,1716689484010,-610.05,0.0003178,5]
[327944814,1716689484018,-1082.84,0.0003178,5]
[327944815,1716689484029,-500.0,0.0003178,5]
[327944816,1716689484038,-676.31,0.0003178,5]
[327944817,1716689484047,-500.0,0.0003178,5]
[327944818,1716689484056,-500.0,0.0003178,5]
[327944819,1716689484066,-500.0,0.0003178,5]
[327944820,1716689484076,-4746.61,0.0003178,5]
[327944821,1716689484086,-598.47,0.0003178,5]
[327944822,1716689484095,-500.0,0.0003178,5]
[327944823,1716689484105,-644.14,0.0003178,5]
[327944824,1716689484115,-500.0,0.0003178,5]
[327944825,1716689484124,-500.0,0.0003178,5]
[327944826,1716689484134,-540.38703971,0.0003178,5]
[327944827,1716689484143,-500.0,0.0003178,5]
[327944828,1716689484153,-742.5,0.0003178,5]
[327944829,1716689484162,-500.0,0.0003178,5]
[327944830,1716689484171,-500.0,0.0003178,5]
[327944831,1716689484181,-500.0,0.0003178,5]
[327944832,1716689484190,-500.0,0.0003178,5]
[327944833,1716689484199,-1427.0,0.0003178,5]
[327944834,1716689484209,-2343.63,0.0003178,5]
[327944835,1716689484218,-488.6641894,0.0003178,5]
[327944836,1716689484228,-500.0,0.0003178,5]
[327944837,1716689484237,-500.0,0.0003178,5]
[327944838,1716689484247,-500.0,0.0003178,5]
[327944839,1716689484256,-344.073188,0.0003178,5]
[327944840,1716689484267,-500.0,0.0003178,5]
[327944841,1716689484276,-569.19,0.0003178,5]
[327944842,1716689484285,-500.0,0.0003178,5]
[327944843,1716689484295,-500.0,0.0003178,5]
[327944844,1716689484305,-974.22,0.0003178,5]
[327944845,1716689484314,-500.0,0.0003178,5]
[327944846,1716689484323,-567.67,0.0003178,5]
[327944847,1716689484333,-1275.08,0.0003178,5]
[327944848,1716689484342,-1265.51,0.0003178,5]
[327944849,1716689484352,-500.0,0.0003178,5]
[327944850,1716689484361,-455.66132131,0.0003178,5]
[327944851,1716689484371,-500.0,0.0003178,5]
[327944852,1716689484380,-1007.98,0.0003178,5]
[327944853,1716689484389,-500.0,0.0003178,5]
[327944854,1716689484399,-1056.07,0.0003178,5]
[327944855,1716689484408,-500.0,0.0003178,5]
[327944856,1716689484418,-500.0,0.0003178,5]
[327944857,1716689484427,-517.88,0.0003178,5]
[327944858,1716689484436,-603.09,0.0003178,5]
[327944859,1716689484448,-990.47,0.0003178,5]
[327944860,1716689484458,-500.0,0.0003178,5]
[327944861,1716689484467,-1030.65,0.0003178,5]
[327944862,1716689484476,-2905.95,0.0003178,5]
[327944863,1716689484487,-500.0,0.0003178,5]
[327944864,1716689484497,-795.06,0.0003178,5]
[327944865,1716689484507,-622.3,0.0003178,5]
[327944866,1716689484518,-966.78,0.0003178,5]
[327944867,1716689484530,-500.0,0.0003178,5]
[327944868,1716689484540,-619.64,0.0003178,5]
[327944869,1716689484550,-1498.31,0.0003178,5]
[327944870,1716689484559,-500.0,0.0003178,5]
[327944871,1716689484568,-500.0,0.0003178,5]
[327944872,1716689484578,-500.0,0.0003178,5]
[327944873,1716689484588,-820.76,0.0003178,5]
[327944874,1716689484598,-806.89,0.0003178,5]
[327944875,1716689484607,-500.0,0.0003178,5]
[327944876,1716689484617,-500.0,0.0003178,5]
[327944877,1716689484626,-858.87,0.0003178,5]
[327944878,1716689484636,-500.0,0.0003178,5]
[327944879,1716689484645,-500.0,0.0003178,5]
[327944880,1716689484655,-500.0,0.0003178,5]
[327944881,1716689484664,-500.0,0.0003178,5]
[327944882,1716689484673,-517.71,0.0003178,5]
[327944883,1716689484682,-500.0,0.0003178,5]
[327944884,1716689484692,-500.0,0.0003178,5]
[327944885,1716689484701,-789.19,0.0003178,5]
[327944886,1716689484711,-1314.91,0.0003178,5]
[327944887,1716689484720,-1468.91,0.0003178,5]
[327944888,1716689484729,-4648.94,0.0003178,5]
[327944889,1716689484738,-500.0,0.0003178,5]
[327944890,1716689484747,-803.67,0.0003178,5]
[327944891,1716689484756,-500.0,0.0003178,5]
[327944892,1716689484767,-991.33,0.0003178,5]
[327944893,1716689484776,-504.6,0.0003178,5]
[327944894,1716689484786,-500.0,0.0003178,5]
[327944895,1716689484795,-500.0,0.0003178,5]
[327944896,1716689484805,-824.23,0.0003178,5]
[327944897,1716689484814,-500.0,0.0003178,5]
[327944898,1716689484823,-500.0,0.0003178,5]
[327944899,1716689484833,-500.0,0.0003178,5]
[327944900,1716689484842,-806.48,0.0003178,5]
[327944901,1716689484852,-5240.53,0.0003178,5]
[327944902,1716689484861,-500.0,0.0003178,5]
[327944903,1716689484871,-500.0,0.0003178,5]
[327944904,1716689484880,-500.0,0.0003178,5]
[327944905,1716689484889,-652.88,0.0003178,5]
[327944906,1716689484898,-500.0,0.0003178,5]
[327944907,1716689484907,-500.0,0.0003178,5]
[327944908,1716689484917,-519.34981158,0.0003178,5]
[327944909,1716689484927,-2341.34,0.0003178,5]
[327944910,1716689484937,-546.02,0.0003178,5]
[327944911,1716689484946,-500.0,0.0003178,5]
[327944912,1716689484956,-500.0,0.0003178,5]
[327944913,1716689484965,-500.0,0.0003178,5]
[327944914,1716689484976,-1757.47,0.0003178,5]
[327944915,1716689484990,-397.50415158,0.0003178,5]
[327944916,1716689484999,-844.38,0.0003178,5]
[327944917,1716689485009,-1194.67,0.0003178,5]
[327944918,1716689485020,-500.0,0.0003178,5]
[327944919,1716689485029,-881.28,0.0003178,5]
[327944920,1716689485039,-500.0,0.0003178,5]